bitfinex/quotes_ETHUSD_20251128
["timestamp","ask_amount","ask_price","bid_price","bid_amount"]
[1764352118281,1.05389411,3040.7,3039.5,3.75920987]
[1764352118477,1.05389411,3040.7,3039.1,0.4045]
[1764352118478,6.512242,3040.4,3039.1,0.1905]
[1764352118679,0.72559411,3040.1,3039.1,0.4045]
[1764352118975,2.776008,3040.2,3039.1,0.4045]
[1764352119194,0.72559411,3040.1,3039.2,0.02018901]
[1764352119341,6.57894736,3040.0,3039.2,0.02018901]
[1764352120397,3.28947368,3040.0,3039.2,0.02018901]
[1764352120597,3.28947368,3040.0,3039.2,3.31050415]
[1764352120752,0.72559411,3040.0,3039.2,0.02018901]
[1764352121072,20.514846,3039.2,3038.1,0.1905]
[1764352121236,0.72559411,3038.8,3037.9,0.1915]
[1764352121441,12.487419,3038.8,3037.9,0.001]
[1764352121735,0.3283,3038.7,3037.9,0.001]
[1764352121853,0.405504,3038.6,3037.9,0.001]
[1764352122052,6.956826,3038.4,3037.9,0.001]
[1764352122265,0.1,3038.3,3037.9,0.001]
[1764352122594,0.405504,3038.8,3037.9,0.001]
[1764352122755,4.651067,3038.5,3037.9,0.001]
[1764352122940,4.650067,3038.3,3037.9,0.001]
[1764352123486,0.3283,3038.7,3037.9,0.001]
[1764352123667,0.72559411,3038.5,3037.9,0.001]
[1764352123992,0.72559411,3038.8,3037.9,0.4703]
[1764352124145,0.72559411,3038.8,3038.0,0.03291639]
[1764352124478,0.72559411,3038.8,3037.9,0.4703]
[1764352125196,0.72559411,3038.8,3038.0,0.03291639]
[1764352125356,6.58176192,3038.7,3038.0,0.03291639]
[1764352125592,6.58176192,3038.7,3038.1,0.1905]
[1764352125780,3.29088096,3038.7,3038.1,0.1905]
[1764352126830,0.3283,3040.3,3038.4,0.1]
[1764352127029,3.48388904,3039.9,3039.1,0.1905]
[1764352127318,2.62284,3039.7,3038.6,0.214]
[1764352127616,0.4283,3039.8,3038.6,0.214]
[1764352127617,6.57981312,3039.6,3038.7,0.0329088]
[1764352128016,3.42464,3039.5,3038.6,0.214]
[1764352128177,0.72559411,3039.5,3038.6,0.214]
[1764352128376,0.1,3038.9,3038.1,0.1905]
[1764352128615,0.30379162,3039.0,3038.1,0.1905]
[1764352128800,0.214,3039.2,3038.1,0.1905]
[1764352129513,0.0943,3039.9,3038.2,0.50221422]
[1764352129690,4.56434911,3039.7,3038.2,0.4693]
[1764352129891,3.385085,3039.4,3038.2,0.4693]
[1764352130217,0.4283,3039.4,3038.2,0.4693]
[1764352130382,3.900345,3039.3,3038.3,0.72428287]
[1764352131076,0.72559411,3039.2,3038.1,3.69599778]
[1764352131278,2.090496,3039.3,3038.1,3.69599778]
[1764352131484,0.6423,3039.4,3038.3,3.29131422]
[1764352131485,0.72559411,3039.1,3038.3,3.29131422]
[1764352131723,0.72559411,3039.1,3038.2,3.76068932]
[1764352131906,0.72559411,3039.1,3038.2,4.17720825]
[1764352132384,0.72559411,3039.1,3038.1,0.4045]
[1764352132385,1.15389411,3039.1,3038.1,0.4045]
[1764352132690,1.15389411,3039.1,3038.1,3.69601903]
[1764352132893,1.15389411,3039.1,3038.2,0.03291422]
[1764352133306,0.82559411,3039.1,3038.1,0.214]
[1764352133615,6.58132876,3038.9,3038.1,0.214]
[1764352133812,3.29056125,3039.0,3038.1,7.48018221]
[1764352134012,0.72559411,3039.0,3038.2,0.4693]
[1764352134215,3.61842279,3039.5,3038.2,0.4693]
[1764352134382,0.72559411,3039.3,3038.2,0.5693]
[1764352134578,0.72559411,3039.3,3038.3,0.80494822]
[1764352135005,0.72559411,3039.3,3038.4,0.4693]
[1764352135598,3.29033956,3039.2,3038.5,3.29109758]
[1764352136013,3.29033956,3039.2,3038.4,3.76047252]
[1764352136179,6.58067912,3039.2,3038.3,4.09625766]
[1764352136681,3.38388875,3039.9,3038.4,6.79445529]
[1764352136886,0.5423,3040.3,3038.8,0.1]
[1764352137194,6.88232573,3040.2,3039.1,0.1]
[1764352137400,1.02940472,3040.1,3039.0,0.314]
[1764352137602,0.72559411,3039.9,3038.7,6.58176192]
[1764352137801,0.72559411,3039.9,3038.8,0.214]
[1764352137802,0.1,3039.8,3038.8,0.214]
[1764352138114,0.1943,3039.8,3038.8,0.214]
[1764352138279,0.82664472,3039.8,3038.8,0.214]
[1764352138483,0.5226,3039.8,3038.8,0.214]
[1764352138705,0.30405964,3039.7,3038.8,0.214]
[1764352139316,0.40405964,3039.6,3038.8,0.214]
[1764352139688,3.2900148,3039.5,3038.8,0.214]
[1764352139888,6.5800296,3039.5,3038.8,0.214]
[1764352140184,0.3283,3039.7,3038.4,7.39651231]
[1764352140511,0.5185566,3039.6,3038.5,1.20895123]
[1764352140721,0.3045566,3039.5,3038.4,0.81412577]
[1764352141019,0.4045566,3039.4,3038.0,7.26651163]
[1764352141221,0.3045566,3039.3,3038.0,3.5055724]
[1764352141421,0.3045566,3039.2,3038.0,0.6833]
[1764352141586,0.3283,3039.3,3038.0,3.97493923]
[1764352141587,0.3045566,3039.1,3038.0,3.97493923]
[1764352141788,6.8856688,3039.0,3038.0,0.6833]
[1764352142021,0.3045566,3038.9,3038.0,0.6833]
[1764352142220,6.5811122,3039.0,3038.0,0.6833]
[1764352142221,0.3045566,3038.8,3038.0,3.97491575]
[1764352142523,0.3045566,3038.7,3038.1,0.0329153]
[1764352142720,6.58094942,3039.1,3038.1,0.0329153]
[1764352142721,6.89494942,3039.1,3038.1,0.0329153]
[1764352142892,0.30554242,3039.0,3038.1,1.01301416]
[1764352143091,0.405504,3039.6,3038.1,1.01301416]
[1764352143092,0.30554242,3038.9,3038.1,1.01301416]
[1764352143325,0.30554242,3038.8,3038.2,0.4693]
[1764352143490,0.30554242,3038.8,3038.1,0.54371416]
[1764352143491,0.30554242,3038.7,3038.3,0.03291314]
[1764352143685,0.30554242,3038.6,3038.3,3.32417852]
[1764352144032,3.2889559,3040.5,3038.3,7.37506811]
[1764352144186,7.09842314,3039.7,3038.5,0.4583]
[1764352144391,1.03142059,3039.6,3038.5,0.4583]
[1764352144629,0.30582648,3039.5,3038.5,0.4583]
[1764352144804,0.30582648,3039.4,3038.5,0.49121097]
[1764352145003,0.30582648,3039.3,3038.2,3.29138703]
[1764352145214,0.30582648,3039.2,3038.3,1.03946458]
[1764352145521,0.30582648,3039.1,3038.1,10.39476766]
[1764352145719,0.3283,3039.4,3038.1,10.39476766]
[1764352145720,0.30582648,3039.0,3038.1,10.39476766]
[1764352146031,0.30582648,3038.9,3038.1,13.68629855]
[1764352146215,0.30582648,3038.8,3038.1,3.80230773]
[1764352146392,0.30582648,3038.7,3038.1,3.80230773]
[1764352146591,0.30582648,3038.6,3038.1,3.80230773]
[1764352146788,0.30582648,3038.5,3038.0,0.214]
[1764352147012,0.30582648,3038.4,3038.1,0.0329153]
[1764352147213,0.30582648,3038.3,3038.1,0.0329153]
[1764352147389,0.30582648,3038.2,3038.1,0.0329153]
[1764352148118,0.30582648,3038.2,3038.1,3.32444619]
[1764352148317,0.30582648,3038.2,3038.1,3.81954619]
[1764352148511,0.30582648,3038.2,3038.1,4.27394619]
[1764352148900,0.30582648,3038.2,3038.1,0.5280153]
[1764352149334,0.30582648,3038.2,3038.0,0.24691639]
[1764352149629,0.30582648,3038.1,3038.0,0.214]
[1764352150525,0.30582648,3038.1,3038.0,3.50563923]
[1764352151120,0.30582648,3038.1,3038.0,0.214]
[1764352151317,0.30582648,3038.1,3037.9,0.001]
[1764352151518,0.52532648,3038.0,3037.9,0.001]
[1764352152036,0.30582648,3038.0,3037.9,0.001]
[1764352152210,3.59746571,3038.0,3037.9,0.001]
[1764352152410,0.30582648,3038.0,3037.9,0.001]
[1764352152725,3.59746571,3038.0,3037.9,0.001]
[1764352153497,0.30582648,3038.0,3037.9,0.001]
[1764352153706,0.30582648,3038.0,3037.9,0.9505]
[1764352154111,0.30582648,3038.0,3037.9,0.001]
[1764352154903,4.14416571,3038.0,3037.9,0.001]
[1764352155451,4.86975982,3038.0,3037.9,0.001]
[1764352155606,4.96975982,3038.0,3037.9,0.001]
[1764352155932,4.54255982,3038.0,3037.9,0.001]
[1764352156316,1.46392059,3038.0,3037.9,0.001]
[1764352156505,4.75555982,3038.0,3037.9,0.001]
[1764352156709,0.52532648,3038.0,3037.9,0.001]
[1764352156928,0.30582648,3038.0,3037.9,0.001]
[1764352157926,0.63412648,3038.0,3037.9,0.001]
[1764352158112,4.65135982,3038.0,3037.9,0.001]
[1764352158308,4.87085982,3038.0,3037.9,0.001]
[1764352158536,4.65135982,3038.0,3037.9,0.001]
[1764352158707,4.87085982,3038.0,3037.9,0.001]
[1764352158910,5.18385982,3038.0,3037.9,0.001]
[1764352159115,5.18385982,3038.0,3036.9,0.1905]
[1764352159116,0.1,3037.4,3035.8,0.1831]
[1764352159340,0.3158,3037.6,3035.8,0.6403]
[1764352159341,0.408804,3037.2,3035.8,0.6403]
[1764352159537,0.1,3036.8,3035.8,0.6403]
[1764352159734,0.30582648,3036.7,3035.8,0.6403]
[1764352159938,0.40582648,3036.6,3035.8,0.1831]
[1764352160245,0.116,3035.9,3035.2,0.213]
[1764352160545,0.72559411,3036.4,3035.2,0.6702]
[1764352160760,0.30667938,3036.3,3035.2,0.6702]
[1764352161053,0.30667938,3036.2,3035.2,0.6702]
[1764352161214,0.30667938,3036.1,3035.2,0.6702]
[1764352161416,0.30667938,3036.0,3035.3,0.03294567]
[1764352161755,1.05389411,3036.4,3035.2,0.6702]
[1764352161756,0.30667938,3035.9,3035.2,0.6702]
[1764352161953,0.30667938,3035.8,3035.2,0.6702]
[1764352162109,0.72559411,3036.2,3035.2,3.96486885]
[1764352162430,0.30622566,3036.1,3035.2,3.99781559]
[1764352162626,0.30622566,3036.0,3035.2,3.99781559]
[1764352162806,0.30592057,3035.9,3035.2,0.70314674]
[1764352163023,0.72559411,3036.2,3035.2,0.70314674]
[1764352163024,0.82559411,3036.2,3035.2,0.6702]
[1764352163357,0.30591999,3036.1,3035.2,0.6702]
[1764352163554,0.30591999,3036.0,3035.2,0.6702]
[1764352163758,0.30591999,3035.9,3035.2,0.6702]
[1764352164061,0.505504,3036.2,3035.2,0.6702]
[1764352164247,0.72559411,3036.0,3035.2,0.6702]
[1764352164732,0.116,3035.9,3035.2,0.6702]
[1764352164932,0.116,3035.9,3035.2,3.96486266]
[1764352165134,0.116,3035.9,3035.2,0.6702]
[1764352165334,0.116,3035.9,3035.3,0.01008846]
[1764352166361,3.40994584,3035.9,3035.3,0.01008846]
[1764352166858,0.5413,3036.9,3035.8,0.4781]
[1764352167058,0.30504744,3036.8,3036.0,0.4781]
[1764352167266,0.30504744,3036.7,3036.0,0.4781]
[1764352167444,0.30504744,3036.6,3036.0,0.4781]
[1764352167644,1.03859411,3036.9,3036.0,0.4781]
[1764352167953,0.4443,3037.1,3036.1,0.19318579]
[1764352167954,0.30510926,3036.8,3036.1,0.19318579]
[1764352168155,4.020987,3037.0,3036.1,0.19318579]
[1764352168384,0.30516539,3036.9,3036.2,0.4572]
[1764352168529,0.0963,3037.6,3036.3,0.6074036]
[1764352168530,6.88954302,3037.5,3036.3,0.6074036]
[1764352168733,0.30515518,3037.4,3036.3,0.61678254]
[1764352168987,0.30515518,3037.3,3036.3,1.0646036]
[1764352169268,0.30515518,3037.2,3036.3,1.0646036]
[1764352169432,0.30515518,3037.1,3036.3,1.0646036]
[1764352169630,6.91268784,3037.5,3036.1,3.4767502]
[1764352169631,0.3283,3037.4,3036.1,3.4767502]
[1764352169839,0.1,3037.2,3036.2,0.213]
[1764352170038,0.30527899,3037.1,3036.2,0.213]
[1764352170240,0.30527899,3037.0,3036.2,0.213]
[1764352170440,3.59812021,3036.9,3036.2,0.213]
[1764352170658,3.29284122,3036.9,3036.2,0.213]
[1764352170851,0.116,3036.8,3036.2,0.213]
[1764352172160,3.29276965,3037.0,3036.2,3.50655038]
[1764352172362,3.29276965,3037.0,3036.2,4.33602286]
[1764352172752,0.72559411,3037.2,3036.2,4.33602286]
[1764352173069,0.30544801,3037.1,3036.2,1.04247248]
[1764352173232,0.30544801,3037.0,3036.2,0.6702]
[1764352173433,0.30544801,3037.1,3036.2,0.6702]
[1764352173657,0.40544801,3037.0,3036.2,0.6702]
[1764352173843,0.1,3037.0,3036.2,0.213]
[1764352174046,0.116,3036.9,3036.2,3.50656212]
[1764352174309,0.42144801,3036.9,3036.2,3.50656212]
[1764352174439,0.42144801,3036.9,3036.2,3.96376212]
[1764352174633,3.40883535,3036.9,3036.2,3.96376212]
[1764352175677,3.40883535,3036.9,3036.2,0.6702]
[1764352175979,3.40883535,3036.9,3036.2,3.96378936]
[1764352176348,3.40883535,3036.9,3036.2,0.213]
[1764352176547,6.8016707,3036.9,3036.2,0.213]
[1764352176748,6.8016707,3036.9,3035.8,0.213]
[1764352176749,1.35989422,3036.8,3035.8,0.213]
[1764352176965,0.1,3036.6,3035.8,0.213]
[1764352177184,0.30600011,3036.7,3035.9,0.52625221]
[1764352177354,0.30611942,3036.7,3035.9,0.52625221]
[1764352177874,0.116,3036.9,3035.9,0.52625221]
[1764352178079,1.03171133,3036.8,3035.9,0.52625221]
[1764352178283,0.30611722,3036.7,3035.9,0.52625221]
[1764352178482,0.72559411,3036.8,3035.9,0.52625221]
[1764352178681,0.30626583,3036.7,3035.9,0.52625221]
[1764352178890,0.72559411,3036.7,3036.0,3.29380764]
[1764352179051,0.72559411,3036.8,3036.1,0.03105016]
[1764352179385,0.30625874,3036.7,3036.1,0.21515016]
[1764352179551,0.72559411,3036.8,3036.1,0.21515016]
[1764352179751,0.30642558,3036.7,3036.1,0.21515016]
[1764352179971,0.72559411,3036.8,3036.1,0.21515016]
[1764352180170,0.30642549,3036.7,3035.9,0.001]
[1764352180495,0.30642549,3036.6,3035.9,0.001]
[1764352180654,0.30642549,3036.5,3035.9,0.001]
[1764352180853,0.30642549,3036.4,3035.9,0.001]
[1764352181063,0.72559411,3036.5,3035.9,0.001]
[1764352181262,0.30659452,3036.4,3035.9,0.001]
[1764352181466,0.30659452,3036.3,3035.9,0.001]
[1764352181761,0.30659452,3036.2,3035.9,0.001]
[1764352181975,0.72559411,3036.5,3035.9,0.001]
[1764352182289,0.30676884,3036.4,3035.9,0.001]
[1764352182587,0.30676884,3036.3,3035.9,0.001]
[1764352182782,0.72559411,3036.6,3035.9,0.001]
[1764352182991,0.30686623,3036.5,3035.9,0.001]
[1764352183155,0.30686623,3036.4,3035.9,0.001]
[1764352183355,0.30686623,3036.3,3035.9,0.001]
[1764352183586,0.30686623,3036.2,3035.9,0.001]
[1764352183765,4.01881935,3036.6,3035.9,0.001]
[1764352183955,0.30703149,3036.5,3035.9,0.001]
[1764352184152,0.30703149,3036.4,3035.9,0.001]
[1764352184380,0.30703149,3036.3,3035.9,0.001]
[1764352184562,0.30703149,3036.2,3035.9,0.001]
[1764352184765,0.30703149,3036.1,3035.9,0.001]
[1764352184967,4.11881935,3036.6,3035.9,0.001]
[1764352185287,0.30725768,3036.5,3035.9,0.001]
[1764352185495,0.30725768,3036.4,3035.9,0.001]
[1764352185796,0.30725768,3036.3,3035.9,0.001]
[1764352185999,0.30725768,3036.2,3035.9,0.001]
[1764352186208,0.30725768,3036.1,3035.9,0.001]
[1764352186358,4.11881935,3036.6,3035.9,0.001]
[1764352186559,0.30752383,3036.5,3035.9,0.001]
[1764352186770,0.30752383,3036.4,3035.9,0.001]
[1764352186981,0.30752383,3036.3,3035.9,0.001]
[1764352187191,0.30752383,3036.2,3035.9,3.29491613]
[1764352187385,0.30752383,3036.1,3035.9,0.001]
[1764352187588,0.30752383,3036.0,3035.9,0.001]
[1764352191394,0.30752383,3036.0,3035.9,0.4757]
[1764352191692,0.30752383,3036.0,3035.9,0.001]
[1764352194201,0.30752383,3036.0,3035.9,0.9699]
[1764352194497,0.30752383,3036.0,3035.9,0.4757]
[1764352196294,0.30752383,3036.0,3035.9,0.001]
[1764352196466,3.82083147,3036.0,3035.9,0.001]
[1764352196823,4.64642558,3036.0,3035.9,0.001]
[1764352197570,1.35261794,3036.0,3035.9,0.001]
[1764352198698,4.64642558,3036.0,3035.9,0.001]
[1764352198864,18.064903,3035.6,3035.5,0.001]
[1764352199064,14.81258994,3035.6,3035.5,0.001]
[1764352199393,4.8719596,3035.6,3035.5,0.001]
[1764352199766,4.9719596,3035.6,3035.5,0.001]
[1764352199960,16.2879096,3035.6,3035.5,0.001]
[1764352200166,16.3804136,3035.6,3035.5,0.001]
[1764352200502,0.1,3037.2,3035.5,2.85674977]
[1764352200708,0.30787133,3037.1,3036.2,7.0860594]
[1764352200912,0.30787133,3037.0,3036.2,7.0860594]
[1764352201076,0.30787133,3036.9,3036.3,0.4942]
[1764352201281,3.29419637,3037.5,3036.3,0.4942]
[1764352201493,0.30783827,3037.4,3036.8,0.4747]
[1764352201818,0.30783827,3037.3,3036.4,0.76802594]
[1764352202022,0.1,3037.0,3036.2,0.1841]
[1764352202187,0.116,3036.5,3035.7,0.4942]
[1764352202510,0.30783827,3036.4,3035.8,0.4942]
[1764352202729,0.30783827,3036.3,3035.5,0.001]
[1764352202884,0.30783827,3036.2,3035.5,0.001]
[1764352203085,0.30783827,3036.1,3035.5,0.001]
[1764352203387,0.30783827,3036.0,3035.6,0.4942]
[1764352203707,0.30783827,3035.9,3035.6,0.4942]
[1764352203914,0.72559411,3036.3,3035.7,0.03294133]
[1764352204116,0.3078658,3036.2,3035.8,0.4747]
[1764352204419,0.3078658,3036.1,3035.8,0.4747]
[1764352204620,0.3078658,3036.0,3035.9,0.4942]
[1764352204979,0.3078658,3036.0,3035.9,0.9689]
[1764352205302,0.3078658,3036.0,3035.9,0.4747]
[1764352205712,0.30790518,3036.0,3035.9,0.4747]
[1764352205914,0.30790518,3036.0,3035.7,0.4827]
[1764352206217,7.31212465,3036.5,3035.7,0.4827]
[1764352206419,0.30793275,3036.4,3035.7,0.4827]
[1764352206580,0.30793275,3036.3,3035.7,0.4827]
[1764352206783,0.30793275,3036.2,3035.7,0.4827]
[1764352207094,0.116,3036.7,3035.7,0.4827]
[1764352207095,0.30793275,3036.1,3035.7,0.4827]
[1764352207295,0.30793275,3036.0,3035.7,0.90415385]
[1764352207628,0.313,3037.3,3036.5,0.6783]
[1764352207831,0.72559411,3037.0,3036.5,0.6783]
[1764352207992,0.30787888,3036.9,3036.5,0.6783]
[1764352208198,0.30787888,3036.8,3036.5,0.6783]
[1764352208420,0.72559411,3037.0,3036.2,0.213]
[1764352208421,0.3283,3036.6,3036.2,0.213]
[1764352208593,0.30787888,3036.5,3036.2,0.213]
[1764352208798,0.30787888,3036.4,3036.1,0.1962]
[1764352209117,0.216,3036.9,3036.1,0.1962]
[1764352209293,0.30789768,3036.8,3036.3,0.4821]
[1764352209489,0.30789768,3036.7,3036.3,0.4821]
[1764352209691,0.30789768,3036.6,3036.3,0.4821]
[1764352209890,0.30789768,3036.5,3036.3,0.9648]
[1764352210090,3.29307797,3036.7,3036.3,0.9648]
[1764352210322,0.30788335,3036.6,3036.4,0.4821]
[1764352210484,0.30788335,3036.5,3036.4,0.4821]
[1764352210818,0.30788335,3036.5,3036.1,0.1962]
[1764352211015,0.30788335,3036.4,3036.1,0.6789]
[1764352211181,3.29307797,3036.7,3036.1,0.6789]
[1764352211526,0.30785957,3036.6,3036.1,0.6789]
[1764352211699,0.30785957,3036.5,3036.1,3.97259711]
[1764352211888,0.72559411,3036.7,3036.1,4.72053969]
[1764352212085,0.30785352,3036.6,3036.1,4.23783969]
[1764352212282,0.30785352,3036.5,3036.2,0.4827]
[1764352212613,0.212,3037.0,3036.5,0.4821]
[1764352212813,0.30782916,3036.9,3036.5,0.4821]
[1764352213005,0.30782916,3036.8,3036.2,0.4827]
[1764352213203,0.30782916,3036.7,3036.2,0.4827]
[1764352213406,0.30782916,3036.6,3036.2,0.4827]
[1764352213606,0.116,3036.9,3036.2,0.4827]
[1764352213809,0.30781295,3036.8,3036.1,4.23782971]
[1764352213996,0.30781295,3036.7,3036.2,0.4827]
[1764352214299,3.29297755,3036.8,3036.2,0.4827]
[1764352214499,0.30977368,3036.7,3036.2,0.4827]
[1764352214785,0.002,3036.7,3036.1,3.48986471]
[1764352214986,0.30777646,3036.6,3036.1,4.55569564]
[1764352215299,0.002,3036.7,3036.1,4.55569564]
[1764352215500,0.30775947,3036.6,3036.1,4.55569564]
[1764352215697,0.002,3036.7,3036.2,0.486]
[1764352215900,0.002,3036.7,3036.6,0.4843]
[1764352216110,0.212,3038.2,3038.0,0.4843]
[1764352216312,0.30716293,3039.1,3038.1,7.36072819]
[1764352216629,0.30710388,3039.6,3038.7,6.60262819]
[1764352216921,0.30710388,3039.5,3039.0,0.4843]
[1764352217122,0.30710388,3039.4,3038.8,0.213]
[1764352217321,0.583,3039.7,3038.8,0.213]
[1764352217838,0.6524,3038.9,3038.2,0.73607282]
[1764352217993,0.187,3038.8,3038.1,0.0618]
[1764352218195,0.187,3038.8,3038.2,0.213]
[1764352218506,0.67,3038.8,3038.1,0.2748]
[1764352218699,0.67,3038.8,3038.1,0.213]
[1764352219050,0.468,3038.2,3037.5,6.80072819]
[1764352219192,0.468,3038.2,3037.6,0.213]
[1764352219392,0.951,3038.2,3037.5,0.213]
[1764352219820,3.29163923,3038.0,3037.2,0.4111]
[1764352220022,0.468,3038.2,3037.2,3.70359247]
[1764352220315,0.505504,3038.6,3037.3,0.486]
[1764352220629,0.1816,3038.9,3037.9,6.60262819]
[1764352220828,0.483,3039.4,3038.3,6.60262819]
[1764352221031,3.28980568,3039.7,3038.4,0.87326282]
[1764352221032,0.213,3039.7,3038.4,0.87326282]
[1764352221202,0.213,3039.7,3038.7,6.60262819]
[1764352221408,0.483,3039.7,3038.8,0.213]
[1764352221807,2.08107,3039.6,3038.8,0.213]
[1764352222010,0.72559411,3039.4,3038.8,0.213]
[1764352222932,0.6579,3038.9,3038.4,0.213]
[1764352223105,0.1871,3038.9,3038.0,3.77753188]
[1764352223306,0.483,3040.1,3038.8,7.08692819]
[1764352223498,0.483,3040.1,3038.9,0.213]
[1764352223701,0.91269411,3039.8,3038.9,0.213]
[1764352223895,3.47680219,3039.8,3038.8,0.486]
[1764352224139,6.293392,3039.6,3038.3,0.213]
[1764352224439,0.1,3039.4,3038.3,0.213]
[1764352224794,0.483,3039.3,3038.3,0.213]
[1764352226905,0.1,3039.1,3038.3,0.213]
[1764352227332,0.6579,3038.4,3037.4,0.486]
[1764352227535,0.405504,3038.9,3037.5,3.99118106]
[1764352227697,0.1871,3038.3,3037.5,0.03292181]
[1764352227896,0.483,3038.8,3037.6,0.486]
[1764352227897,0.1871,3038.8,3037.6,0.486]
[1764352228120,2.192294,3038.7,3037.7,0.03291964]
[1764352228518,0.483,3038.7,3037.7,0.03291964]
[1764352228909,0.72559411,3038.5,3037.7,0.03291964]
[1764352229135,0.72559411,3038.6,3037.7,0.03291964]
[1764352229641,0.483,3038.5,3037.7,0.03291964]
[1764352230004,4.378475,3038.7,3037.7,3.32486106]
[1764352230202,0.72559411,3038.6,3037.7,3.32486106]
[1764352230430,0.6701,3038.8,3037.8,0.486]
[1764352230640,5.49788811,3038.7,3037.7,0.66170164]
[1764352230844,1.30859411,3038.7,3037.6,3.2920036]
[1764352231051,0.72559411,3038.5,3037.7,3.32488339]
[1764352231207,0.72559411,3038.6,3037.8,0.33248834]
[1764352231415,0.72559411,3038.6,3037.9,0.03291747]
[1764352231716,0.72559411,3038.6,3037.8,0.213]
[1764352233058,6.58219516,3038.5,3037.8,0.213]
[1764352233210,0.72559411,3038.4,3037.8,0.213]
[1764352233834,1.20859411,3038.4,3037.8,0.213]
[1764352234040,1.20859411,3038.4,3037.4,0.213]
[1764352234041,0.483,3038.3,3037.4,0.213]
[1764352234216,0.483,3038.3,3037.4,0.24592289]
[1764352235135,3.29142255,3038.2,3037.5,3.32510286]
[1764352235448,3.29142255,3038.2,3037.4,0.213]
[1764352235750,3.76012255,3038.2,3037.4,0.213]
[1764352236115,7.0515451,3038.2,3037.4,0.213]
[1764352236315,0.4687,3038.1,3037.4,0.213]
[1764352237247,3.29163923,3038.0,3037.4,0.213]
[1764352237454,3.29163923,3038.0,3037.2,0.1981]
[1764352237749,3.29163923,3038.0,3037.1,0.001]
[1764352237750,0.4801,3037.3,3037.1,0.001]
[1764352238057,0.1039,3037.2,3037.1,0.001]
[1764352238283,0.30613386,3037.4,3037.1,0.001]
[1764352238445,0.4687,3037.8,3037.1,0.001]
[1764352238446,0.213,3037.7,3037.2,0.4975]
[1764352238645,0.4687,3037.5,3037.1,0.001]
[1764352239265,0.213,3037.6,3037.1,0.001]
[1764352239460,0.30627214,3037.5,3037.1,0.001]
[1764352239651,1.03859411,3037.6,3037.1,0.001]
[1764352239652,0.30627214,3037.4,3037.1,0.001]
[1764352239852,0.484,3037.2,3037.1,0.001]
[1764352240049,0.72559411,3037.6,3037.1,0.001]
[1764352240374,0.484,3037.2,3037.1,0.001]
[1764352241376,3.76088578,3037.5,3037.1,0.001]
[1764352241560,0.72559411,3037.7,3037.1,0.5218]
[1764352241764,0.90709411,3037.8,3037.1,0.5218]
[1764352241963,4.19897959,3037.8,3037.1,0.5218]
[1764352242568,7.49086507,3037.8,3037.1,0.0582]
[1764352242766,0.1815,3037.8,3037.1,0.0582]
[1764352242942,0.72559411,3037.7,3037.1,0.0582]
[1764352243143,4.01762641,3037.7,3037.1,0.0582]
[1764352243674,0.1871,3038.8,3037.6,0.4975]
[1764352243877,0.4687,3039.2,3038.6,0.691]
[1764352244056,0.6817,3039.4,3038.1,0.213]
[1764352244249,3.29060508,3039.0,3038.1,0.213]
[1764352244443,3.29060508,3039.0,3037.7,0.6571]
[1764352244444,0.1815,3038.9,3037.7,0.1935]
[1764352244645,3.29292762,3038.7,3037.7,0.6571]
[1764352244873,0.72559411,3038.6,3037.7,0.6571]
[1764352245278,1.19429411,3038.6,3037.7,0.6571]
[1764352245575,0.72559411,3038.6,3037.8,3.75545594]
[1764352246686,0.72559411,3038.6,3037.8,0.4636]
[1764352246896,0.72559411,3038.6,3037.8,3.75545594]
[1764352247246,1.29429411,3038.6,3037.7,0.1935]
[1764352247487,6.58219516,3038.5,3037.7,0.1935]
[1764352247845,6.58219516,3038.5,3037.1,3.35079657]
[1764352247846,1.19429411,3038.4,3037.1,3.35079657]
[1764352248056,0.313,3038.3,3037.1,1.11623966]
[1764352248265,0.7817,3038.3,3037.1,0.7348]
[1764352248545,0.4687,3038.2,3037.1,0.7348]
[1764352248776,0.1,3038.0,3037.1,0.2712]
[1764352249083,0.1,3038.0,3037.1,3.56379889]
[1764352249279,0.1815,3037.9,3037.1,3.56379889]
[1764352249481,3.47332756,3037.9,3037.1,4.28237719]
[1764352249774,3.47332756,3037.9,3037.1,7.57499185]
[1764352250076,7.23385512,3037.9,3037.1,0.95685216]
[1764352250288,7.33385512,3037.9,3037.1,0.2712]
[1764352250451,7.33385512,3037.9,3037.1,3.35080249]
[1764352250662,7.33385512,3037.9,3037.1,0.0582]
[1764352251598,7.33385512,3037.9,3037.1,0.001]
[1764352251599,0.484,3037.2,3037.1,0.001]
[1764352251902,0.3071037,3037.2,3037.1,0.001]
[1764352253062,0.2571037,3037.2,3037.1,0.001]
[1764352253480,4.03360995,3037.2,3037.1,0.001]
[1764352253704,4.50230995,3037.2,3037.1,0.001]
[1764352253909,1.2098037,3037.2,3037.1,0.001]
[1764352254380,0.2571037,3037.2,3037.1,1.0193]
[1764352254582,3.29163502,3038.1,3037.1,1.0193]
[1764352254783,0.72559411,3038.0,3037.2,0.49652504]
[1764352255088,0.72559411,3038.0,3037.1,0.5557]
[1764352255089,1.19429411,3038.0,3037.1,0.5557]
[1764352255293,0.1815,3037.9,3037.1,0.5557]
[1764352255482,3.29185594,3037.8,3037.1,0.4985]
[1764352255814,6.58371188,3037.8,3037.1,0.4985]
[1764352255984,3.29185594,3037.8,3037.1,3.79110485]
[1764352256184,3.29185594,3037.8,3037.1,0.94342049]
[1764352256476,6.58371188,3037.8,3037.1,0.94342049]
[1764352256682,6.58371188,3037.8,3037.1,0.4985]
[1764352257080,3.29185594,3037.8,3037.2,0.03292506]
[1764352257494,3.29185594,3037.8,3037.2,3.32542962]
[1764352257694,6.58371188,3037.8,3037.1,0.49752614]
[1764352257896,6.58371188,3037.8,3037.1,3.79010764]
[1764352258101,3.4732947,3037.9,3037.1,4.51784373]
[1764352258521,6.7650894,3037.9,3037.1,4.51784373]
[1764352258681,6.7650894,3037.9,3037.1,0.72873609]